bitfinex-derivatives/quotes_BTCF0:USTF0_20250630
["timestamp","ask_amount","ask_price","bid_price","bid_amount"]
[1751312241234,2.6891045,107610.0,107600.0,0.93966895]
[1751312241836,2.3724086,107610.0,107600.0,0.93966895]
[1751312242042,2.6891045,107610.0,107600.0,0.92537021]
[1751312242940,2.5032759,107610.0,107600.0,0.92537021]
[1751312244436,2.5032759,107610.0,107600.0,0.68537021]
[1751312246144,2.18658,107610.0,107600.0,0.68537021]
[1751312246349,2.18658,107610.0,107600.0,0.72233609]
[1751312247248,2.18658,107610.0,107600.0,0.73667358]
[1751312248349,2.3724086,107610.0,107600.0,0.59894917]
[1751312248547,2.18658,107610.0,107600.0,0.69894917]
[1751312249448,2.18658,107610.0,107600.0,0.75442417]
[1751312253338,1.6033,107610.0,107600.0,1.02442417]
[1751312253544,2.1863,107610.0,107600.0,1.30415419]
[1751312253841,2.12426,107610.0,107600.0,1.30415419]
[1751312254047,1.5413,107610.0,107600.0,1.36685419]
[1751312254252,1.508,107610.0,107600.0,1.40015419]
[1751312255144,1.508,107610.0,107600.0,1.43708315]
[1751312255551,1.508,107610.0,107600.0,1.40015419]
[1751312255949,1.508,107610.0,107600.0,1.08345829]
[1751312256249,1.508,107610.0,107600.0,1.40015419]
[1751312258952,1.508,107610.0,107600.0,1.69675419]
[1751312259950,1.508,107610.0,107600.0,2.27963419]
[1751312261957,1.508,107610.0,107600.0,1.96293829]
[1751312262357,1.508,107610.0,107600.0,2.27963419]
[1751312262554,1.508,107610.0,107600.0,1.96293829]
[1751312262754,1.508,107610.0,107600.0,1.38005829]
[1751312262957,1.508,107610.0,107600.0,1.96285829]
[1751312263350,1.508,107610.0,107600.0,2.27955419]
[1751312264058,1.508,107610.0,107600.0,1.96285829]
[1751312264258,1.508,107610.0,107600.0,2.27955419]
[1751312264655,1.508,107610.0,107600.0,1.73368803]
[1751312264959,1.508,107610.0,107600.0,2.01988803]
[1751312264960,1.5395,107610.0,107600.0,2.01988803]
[1751312265254,1.5395,107610.0,107600.0,1.98295419]
[1751312265858,1.7253286,107610.0,107600.0,1.02075829]
[1751312266160,1.7253286,107610.0,107600.0,0.72745829]
[1751312266355,1.7584286,107610.0,107600.0,0.72745829]
[1751312268662,2.1751245,107610.0,107600.0,0.72745829]
[1751312268864,2.0751245,107610.0,107600.0,0.72745829]
[1751312269460,2.0751245,107610.0,107600.0,0.76439762]
[1751312269764,2.0751245,107610.0,107600.0,1.00439762]
[1751312272068,1.5726,107610.0,107600.0,1.00439762]
[1751312272266,1.9204959,107610.0,107600.0,0.76439762]
[1751312272465,1.9204959,107610.0,107600.0,0.72745829]
[1751312273268,2.1063245,107610.0,107600.0,0.72745829]
[1751312274261,2.3723086,107610.0,107600.0,0.75006204]
[1751312274570,2.5031759,107610.0,107600.0,0.72743994]
[1751312275263,0.68648,107610.0,107600.0,0.72743994]
[1751312275969,1.6038,107610.0,107600.0,0.72743994]
[1751312276160,2.18644,107610.0,107600.0,0.61743994]
[1751312276366,2.18644,107610.0,107600.0,0.72743994]
[1751312276764,2.18644,107610.0,107600.0,0.59890742]
[1751312276969,2.5031359,107610.0,107600.0,0.70980239]
[1751312277171,2.5031359,107610.0,107600.0,0.74130239]
[1751312277371,2.18644,107610.0,107600.0,1.26799829]
[1751312277571,2.18644,107610.0,107600.0,0.95130239]
[1751312277772,2.18644,107610.0,107600.0,0.98230239]
[1751312277972,0.68644,107610.0,107600.0,0.98230239]
[1751312278472,2.18644,107610.0,107600.0,0.98230239]
[1751312280572,2.18644,107610.0,107600.0,0.97140742]
[1751312283674,2.5031359,107610.0,107600.0,0.98993994]
[1751312283973,2.18644,107610.0,107600.0,0.98993994]
[1751312284475,2.18644,107610.0,107600.0,0.78993994]
[1751312286271,2.18644,107610.0,107600.0,0.99993994]
[1751312286572,2.18644,107610.0,107600.0,0.82687984]
[1751312287376,2.5031359,107610.0,107600.0,0.82687984]
[1751312289874,2.42397615,107610.0,107600.0,1.06441599]
[1751312290278,2.42397615,107610.0,107600.0,1.02747609]
[1751312291273,2.42397615,107610.0,107600.0,1.01315695]
[1751312291479,2.42397615,107610.0,107600.0,1.02768341]
[1751312293075,2.60980475,107610.0,107600.0,0.79014726]
[1751312293278,2.60980475,107610.0,107600.0,1.02768341]
[1751312293481,2.42397615,107610.0,107600.0,1.02768341]
[1751312295282,2.42397615,107610.0,107600.0,0.79014726]
[1751312295581,2.42397615,107610.0,107600.0,1.02768341]
[1751312296386,2.60980475,107610.0,107600.0,0.79014726]
[1751312296579,2.42397615,107610.0,107600.0,0.79014726]
[1751312296780,2.42397615,107610.0,107600.0,1.02768341]
[1751312297186,2.42397615,107610.0,107600.0,0.79014726]
[1751312297379,2.42397615,107610.0,107600.0,1.02768341]
[1751312297580,2.60980475,107610.0,107600.0,1.02768341]
[1751312298485,2.60980475,107610.0,107600.0,1.23768341]
[1751312299387,2.42397615,107610.0,107600.0,1.01768341]
[1751312299581,2.60980475,107610.0,107600.0,0.79014726]
[1751312300078,2.60980475,107610.0,107600.0,0.96518341]
[1751312300689,2.60980475,107610.0,107600.0,1.16518341]
[1751312300991,2.60980475,107610.0,107600.0,0.96518341]
[1751312302292,2.60980475,107610.0,107600.0,1.18518341]
[1751312302588,2.60980475,107610.0,107600.0,0.85518341]
[1751312302793,2.60980475,107610.0,107600.0,0.96518341]
[1751312303092,2.60980475,107610.0,107600.0,0.72764726]
[1751312303295,2.70980475,107610.0,107600.0,0.72764726]
[1751312304492,2.70980475,107610.0,107600.0,0.93764726]
[1751312304894,2.70980475,107610.0,107600.0,0.72764726]
[1751312305193,2.70980475,107610.0,107600.0,0.70912936]
[1751312305596,2.9473409,107610.0,107600.0,0.05248356]
[1751312305795,2.9473409,107610.0,107600.0,0.26605021]
[1751312306194,2.95672782,107610.0,107600.0,0.26605021]
[1751312307094,2.95672782,107610.0,107600.0,0.22909311]
[1751312307885,3.31752782,107610.0,107600.0,0.22909311]
[1751312308090,1.81752782,107610.0,107600.0,0.20137236]
[1751312309200,1.81752782,107610.0,107600.0,0.1868459]
[1751312310596,2.30509937,107610.0,107580.0,0.0369571]
[1751312310800,1.0217355,107590.0,107580.0,0.04222679]
[1751312311002,1.9476155,107590.0,107580.0,0.01452959]
[1751312311196,2.0113155,107590.0,107580.0,0.01452959]
[1751312311392,0.1858804,107580.0,107570.0,0.01660971]
[1751312311592,1.2160527,107580.0,107570.0,0.03114042]
[1751312312101,1.2160527,107580.0,107560.0,0.00092967]
[1751312312102,0.1858977,107570.0,107560.0,0.00092967]
[1751312312301,1.78195226,107570.0,107560.0,0.00092967]
[1751312312598,1.79136029,107570.0,107560.0,0.00092967]
[1751312313197,1.79136029,107570.0,107560.0,0.18684467]
[1751312313905,1.633352,107570.0,107560.0,0.18684467]
[1751312314903,1.632352,107570.0,107560.0,0.18684467]
[1751312315503,1.633352,107570.0,107560.0,0.18684467]
[1751312316306,1.31628799,107570.0,107560.0,0.18684467]
[1751312316607,1.633352,107570.0,107560.0,0.18684467]
[1751312317407,1.31628799,107570.0,107560.0,0.18684467]
[1751312317607,1.633352,107570.0,107560.0,0.18684467]
[1751312320909,1.31628799,107570.0,107560.0,0.18684467]
[1751312321205,1.633352,107570.0,107560.0,0.18684467]
[1751312328013,1.31628799,107570.0,107560.0,0.18684467]
[1751312328210,1.633352,107570.0,107560.0,0.18684467]
[1751312336821,1.665252,107570.0,107560.0,0.18684467]
[1751312338428,1.665252,107570.0,107560.0,0.21694467]
[1751312338616,1.59094397,107570.0,107560.0,0.21694467]
[1751312338812,1.56024397,107570.0,107560.0,0.21694467]
[1751312339018,1.56024397,107570.0,107560.0,0.27984467]
[1751312339417,1.19944397,107570.0,107560.0,0.27984467]
[1751312339620,1.56024397,107570.0,107560.0,0.27984467]
[1751312340520,1.56024397,107570.0,107560.0,0.29437815]
[1751312341225,1.56024397,107570.0,107560.0,0.33133525]
[1751312344129,1.56024397,107570.0,107560.0,0.31680177]
[1751312344429,1.59064397,107570.0,107560.0,0.31680177]
[1751312344622,1.65484397,107570.0,107560.0,0.31680177]
[1751312345226,1.65484397,107570.0,107560.0,0.27984467]
[1751312346533,1.07264397,107570.0,107560.0,0.24894467]
[1751312346837,1.89828397,107570.0,107560.0,0.24894467]
[1751312347237,1.89828397,107570.0,107560.0,0.26347853]
[1751312349839,1.89828397,107570.0,107560.0,0.20137853]
[1751312352339,1.89828397,107570.0,107560.0,0.01546353]
[1751312352538,1.89828397,107570.0,107560.0,0.20137853]
[1751312352927,1.89828397,107570.0,107560.0,0.01546353]
[1751312353131,1.89828397,107570.0,107560.0,0.00092967]
[1751312353331,1.89828397,107570.0,107560.0,0.18684467]
[1751312353733,1.89828397,107570.0,107560.0,0.00092967]
[1751312354038,1.89728397,107570.0,107560.0,0.00092967]
[1751312354234,1.90028397,107570.0,107560.0,0.00192967]
[1751312354435,1.90028397,107570.0,107560.0,0.18784467]
[1751312355041,1.90028397,107570.0,107560.0,0.00192967]
[1751312355440,1.90028397,107570.0,107560.0,0.18784467]
[1751312358542,1.90028397,107570.0,107560.0,0.00192967]
[1751312359845,2.05885812,107570.0,107560.0,0.00192967]
[1751312361350,0.185915,107560.0,107550.0,0.0369571]
[1751312361657,1.45797224,107560.0,107550.0,0.0369571]
[1751312361849,1.45797224,107560.0,107550.0,0.05094324]
[1751312363457,1.22015316,107560.0,107550.0,0.05094324]
[1751312363655,1.22115316,107560.0,107550.0,0.05194324]
[1751312363954,1.0626423,107560.0,107550.0,0.05194324]
[1751312364148,1.0616423,107560.0,107550.0,0.01398614]
[1751312364349,1.0676423,107560.0,107550.0,0.01498614]
[1751312364547,1.3847696,107560.0,107550.0,0.01498614]
[1751312365259,1.3847696,107560.0,107550.0,0.05194324]
[1751312365460,1.3847696,107560.0,107550.0,0.01498614]
[1751312365857,2.1884496,107560.0,107550.0,0.01498614]
[1751312366653,0.1859323,107550.0,107540.0,0.0924321]
[1751312366852,1.6431796,107550.0,107540.0,0.0924321]
[1751312367157,2.00230369,107550.0,107530.0,0.05550901]
[1751312367353,0.1859841,107520.0,107510.0,0.49386244]
[1751312367548,1.3283114,107520.0,107510.0,0.4199844]
[1751312367753,1.3283114,107520.0,107510.0,0.3734844]
[1751312368454,1.3273114,107520.0,107510.0,0.3734844]
[1751312369261,1.4273114,107520.0,107510.0,0.3734844]
[1751312369764,1.4283114,107520.0,107510.0,0.3744844]
[1751312372262,1.1111841,107520.0,107510.0,0.3744844]
[1751312372657,1.3283114,107520.0,107510.0,0.3744844]
[1751312373769,1.4283114,107520.0,107510.0,0.3744844]
[1751312374563,1.3283114,107520.0,107510.0,0.3744844]
[1751312377059,0.5031114,107520.0,107510.0,0.3744844]
[1751312377258,1.3284314,107520.0,107510.0,0.3744844]
[1751312378163,1.4284314,107520.0,107510.0,0.3744844]
[1751312379160,1.1113041,107520.0,107510.0,0.3744844]
[1751312379363,1.4284314,107520.0,107510.0,0.3744844]
[1751312380170,1.4284314,107520.0,107510.0,0.40218289]
[1751312381164,1.4284314,107520.0,107510.0,0.3744844]
[1751312383167,1.4284314,107520.0,107510.0,0.388948]
[1751312384472,2.1063587,107520.0,107510.0,0.01490248]
[1751312384663,2.2011587,107520.0,107510.0,0.01490248]
[1751312384864,2.2011587,107520.0,107510.0,0.1870014]
[1751312385171,2.27441789,107520.0,107510.0,0.01492071]
[1751312385372,2.27441789,107520.0,107510.0,0.1870014]
[1751312385876,1.95729059,107520.0,107510.0,0.1870014]
[1751312386371,1.95729059,107520.0,107510.0,0.20101909]
[1751312387473,1.95829059,107520.0,107510.0,0.20101909]
[1751312391873,2.27541789,107520.0,107510.0,0.01501769]
[1751312393676,2.27541789,107520.0,107510.0,0.001]
[1751312393976,3.07941789,107520.0,107510.0,0.001]
[1751312395278,3.07941789,107520.0,107510.0,0.01512859]
[1751312395775,3.07941789,107520.0,107510.0,0.001]
[1751312396270,3.07941789,107520.0,107510.0,0.01515327]
[1751312399176,3.07941789,107520.0,107510.0,0.20115467]
[1751312399674,2.76229059,107520.0,107510.0,0.20115467]
[1751312399878,3.07941789,107520.0,107510.0,0.20115467]
[1751312400473,1.86340329,107520.0,107510.0,0.20115467]
[1751312400678,2.76213059,107520.0,107510.0,0.01515327]
[1751312400882,3.07925789,107520.0,107510.0,0.01515327]
[1751312401671,3.07925789,107520.0,107510.0,0.20115477]
[1751312401976,2.76213059,107520.0,107510.0,0.20115477]
[1751312402481,3.07925789,107520.0,107510.0,0.01515327]
[1751312402975,3.07925789,107520.0,107510.0,0.20115477]
[1751312404680,0.1860014,107510.0,107500.0,0.29584579]
[1751312404872,1.0601287,107510.0,107500.0,0.34234999]
[1751312405074,0.75812854,107510.0,107500.0,0.34234999]
[1751312405371,1.07525584,107510.0,107500.0,0.34234999]
[1751312405570,1.07425584,107510.0,107500.0,0.34234999]
[1751312406177,1.07425584,107510.0,107500.0,0.34334999]
[1751312406382,1.07625584,107510.0,107500.0,0.34334999]
[1751312406879,1.01275584,107510.0,107500.0,0.34334999]
[1751312407074,1.01275584,107510.0,107500.0,0.37394999]
[1751312407280,0.91275584,107510.0,107500.0,0.37394999]
[1751312407473,1.59447584,107510.0,107500.0,0.37394999]
[1751312408076,1.59447584,107510.0,107500.0,0.32744579]
[1751312408569,1.65737584,107510.0,107500.0,0.32744579]
[1751312410184,1.65737584,107510.0,107500.0,0.35514428]
[1751312410584,1.62457584,107510.0,107500.0,0.35514428]
[1751312410882,1.59447584,107510.0,107500.0,0.35514428]
[1751312413889,1.56177584,107510.0,107500.0,0.35514428]
[1751312420179,1.56177584,107510.0,107500.0,0.39209303]
[1751312421391,0.98005584,107510.0,107500.0,0.39209303]
[1751312421593,1.44425584,107510.0,107500.0,0.39209303]
[1751312421787,1.80505584,107510.0,107500.0,0.39209303]
[1751312423893,1.72595067,107510.0,107500.0,0.39209303]
[1751312424289,1.72795067,107510.0,107500.0,0.39209303]
[1751312424989,1.9659728,107510.0,107500.0,0.39209303]
[1751312426698,1.9659728,107510.0,107500.0,0.35514428]
[1751312427094,0.11912714,107510.0,107500.0,0.35514428]
[1751312427293,0.50050927,107510.0,107500.0,1.19198854]
[1751312427493,1.08214927,107510.0,107500.0,1.19198854]
[1751312427798,0.84412714,107510.0,107500.0,1.03321441]
[1751312427994,0.84412714,107510.0,107500.0,1.05687115]
[1751312428206,1.03012854,107510.0,107500.0,0.73960102]
[1751312429095,0.52239867,107510.0,107500.0,0.73960102]
[1751312429300,0.78672854,107510.0,107500.0,0.73960102]
[1751312429599,1.10399867,107510.0,107500.0,0.73960102]
[1751312431300,0.78672854,107510.0,107500.0,0.73960102]
[1751312431598,0.91799727,107510.0,107500.0,0.73960102]
[1751312431799,0.01912714,107510.0,107500.0,1.37687115]
[1751312432000,0.60072714,107510.0,107500.0,1.37687115]
[1751312432899,0.60072714,107510.0,107500.0,1.39529839]
[1751312433397,0.60072714,107510.0,107500.0,1.43233724]
[1751312433596,0.60072714,107510.0,107500.0,1.41793076]
[1751312435098,0.60072714,107510.0,107500.0,1.38089191]
[1751312435500,0.60072714,107510.0,107500.0,1.41792148]
[1751312435993,0.60072714,107510.0,107500.0,1.09792148]
[1751312438699,0.60072714,107510.0,107500.0,1.44792148]
[1751312439001,1.36463013,107520.0,107510.0,0.1860014]
[1751312439002,0.804,107520.0,107510.0,0.1860014]
[1751312439191,0.804,107520.0,107510.0,1.38194991]
[1751312439392,0.59666417,107530.0,107520.0,0.1859841]
[1751312439597,0.01514417,107530.0,107520.0,0.63763539]
[1751312439797,0.59666417,107530.0,107520.0,0.63763539]
[1751312439991,0.59666417,107530.0,107520.0,0.67465161]
[1751312440403,0.60466417,107530.0,107520.0,0.63863539]
[1751312440604,0.60466417,107530.0,107520.0,0.64814472]
[1751312442403,0.60466417,107530.0,107520.0,0.97814472]
[1751312442801,0.60466417,107530.0,107520.0,0.64814472]
[1751312443001,0.60466417,107530.0,107520.0,1.02814472]
[1751312443603,0.02314417,107530.0,107520.0,1.02814472]
[1751312443811,0.60462417,107530.0,107520.0,1.34541485]
[1751312444008,0.60462417,107530.0,107520.0,1.06516094]
[1751312444204,0.60462417,107530.0,107520.0,1.02814472]
[1751312445309,0.60462417,107530.0,107520.0,1.00039343]
[1751312446111,0.79059097,107530.0,107520.0,0.62039343]
[1751312446910,0.60462417,107530.0,107520.0,0.62039343]
[1751312447111,0.79059097,107530.0,107520.0,0.65289343]
[1751312448115,0.79059097,107530.0,107520.0,0.6433841]
[1751312448619,1.1078611,107530.0,107520.0,0.6433841]
[1751312450111,0.79059097,107530.0,107520.0,0.6433841]
[1751312453810,0.5589811,107530.0,107520.0,0.6433841]
[1751312454012,1.1403011,107530.0,107520.0,0.5477841]
[1751312454200,1.2032011,107530.0,107520.0,0.5477841]
[1751312454909,1.3032011,107530.0,107520.0,0.5477841]
[1751312455309,1.2032011,107530.0,107520.0,0.57553539]
[1751312456308,1.2032011,107530.0,107520.0,0.21473539]
[1751312456709,0.88593097,107530.0,107520.0,0.21473539]
[1751312456908,1.2032011,107530.0,107520.0,0.21473539]
[1751312461517,0.88593097,107530.0,107520.0,0.21473539]
[1751312461714,1.2032011,107530.0,107520.0,0.21473539]
[1751312462115,1.2032011,107530.0,107520.0,0.24503539]
[1751312464907,1.2032011,107530.0,107520.0,0.21473539]
[1751312465112,1.3032011,107530.0,107520.0,0.21473539]
[1751312465312,0.98593097,107530.0,107520.0,0.21473539]
[1751312465619,1.3032011,107530.0,107520.0,0.21473539]
[1751312467420,1.3032011,107530.0,107520.0,0.25175161]
[1751312467618,1.3032011,107530.0,107520.0,0.21473539]
[1751312471524,0.98593097,107530.0,107520.0,0.21473539]
[1751312471724,1.3032011,107530.0,107520.0,0.21473539]
[1751312472224,1.6640011,107530.0,107520.0,0.21473539]
[1751312476014,1.6640011,107530.0,107520.0,0.25175161]
[1751312476926,1.6640011,107530.0,107520.0,0.21473539]
[1751312483534,1.6640011,107530.0,107520.0,0.25175161]
[1751312483734,1.82262599,107530.0,107520.0,0.25175161]
[1751312485432,1.82262599,107530.0,107520.0,0.21473539]
[1751312488037,1.80748182,107530.0,107520.0,0.21473539]
[1751312492242,1.3315868,107530.0,107520.0,0.21473539]
[1751312492541,1.80748182,107530.0,107520.0,0.21473539]
[1751312495755,1.22616182,107530.0,107520.0,0.21473539]
[1751312495956,1.81209431,107530.0,107520.0,0.21473539]
[1751312496253,2.05004182,107530.0,107520.0,0.24533539]
[1751312496849,1.46928182,107530.0,107520.0,0.24533539]
[1751312497056,2.05004182,107530.0,107520.0,0.27573539]
[1751312497452,1.88714182,107530.0,107520.0,0.27573539]
[1751312497653,1.88714182,107530.0,107520.0,0.30643539]
[1751312497849,0.43191431,107530.0,107520.0,0.30643539]
[1751312498054,1.25575431,107530.0,107520.0,0.58139912]
[1751312498254,1.25575431,107530.0,107520.0,0.34345161]
[1751312498455,1.25575431,107530.0,107520.0,0.58139912]
[1751312498656,1.25575431,107530.0,107520.0,0.34345161]
[1751312498959,1.25575431,107530.0,107520.0,0.58139912]
[1751312501857,1.25575431,107530.0,107520.0,0.34345161]
[1751312513473,1.35575431,107530.0,107520.0,0.34345161]
[1751312513770,1.38585431,107530.0,107520.0,0.34345161]
[1751312514172,1.1479068,107530.0,107520.0,0.34345161]
[1751312514366,1.38585431,107530.0,107520.0,0.34345161]
[1751312515577,1.74665431,107530.0,107520.0,0.34345161]
[1751312516074,1.5087068,107530.0,107520.0,0.34345161]
[1751312516274,1.77735431,107530.0,107520.0,0.34345161]
[1751312516465,2.01530182,107530.0,107520.0,0.31275161]
[1751312516666,2.04550182,107530.0,107520.0,0.31275161]
[1751312519170,1.80755431,107530.0,107520.0,0.31275161]
[1751312520475,1.80691431,107530.0,107520.0,0.31275161]
[1751312520675,1.80687431,107530.0,107520.0,0.31275161]
[1751312521565,0.98371431,107530.0,107520.0,0.31275161]
[1751312521871,1.80687431,107530.0,107520.0,0.31275161]
[1751312522780,1.80687431,107530.0,107520.0,0.2479841]
[1751312523079,1.80687431,107530.0,107520.0,0.31286154]
[1751312523683,2.04482182,107530.0,107520.0,0.31286154]
[1751312523879,2.04482182,107530.0,107520.0,0.25186154]
[1751312525480,1.22166182,107530.0,107520.0,0.25186154]
[1751312525681,2.04474182,107530.0,107520.0,0.25186154]
[1751312525986,1.70679431,107530.0,107520.0,0.28216154]
[1751312526183,1.70679431,107530.0,107520.0,0.24508872]
[1751312526382,0.0381,107530.0,107520.0,0.88090905]
[1751312526685,0.1939668,107530.0,107520.0,1.49115439]
[1751312526988,0.008,107530.0,107520.0,1.53152276]
[1751312528382,0.24594751,107530.0,107520.0,1.53152276]
[1751312529185,0.24594751,107530.0,107520.0,1.29357525]
[1751312529386,0.43191431,107530.0,107520.0,1.28440688]
[1751312529586,0.43191431,107530.0,107520.0,0.94440688]
[1751312530175,0.43191431,107530.0,107520.0,1.33374499]
[1751312534386,0.43191431,107530.0,107520.0,0.95374499]
[1751312534694,0.43191431,107530.0,107520.0,0.97374499]
[1751312534885,0.43191431,107530.0,107520.0,0.95374499]
[1751312535085,0.43191431,107530.0,107520.0,1.28374499]
[1751312535285,0.43191431,107530.0,107520.0,0.97374499]
[1751312535693,0.008,107530.0,107520.0,0.95374499]
[1751312535892,0.24594751,107530.0,107520.0,0.91667217]
[1751312536092,0.24594751,107530.0,107520.0,0.95374499]
[1751312536293,0.24594751,107530.0,107520.0,1.22374499]
[1751312536493,0.24594751,107530.0,107520.0,1.33374499]
[1751312536792,0.24594751,107530.0,107520.0,0.95374499]
[1751312538695,0.008,107530.0,107520.0,2.10906604]
[1751312538892,0.24594751,107530.0,107520.0,2.10906604]
[1751312539394,0.008,107530.0,107520.0,2.10906604]
[1751312539991,0.008,107530.0,107520.0,1.63317102]
[1751312540290,0.008,107530.0,107520.0,2.10906604]
[1751312545005,0.24594751,107530.0,107520.0,2.10906604]
[1751312545205,0.008,107530.0,107520.0,2.10906604]
[1751312545412,0.24594751,107530.0,107520.0,2.10906604]
[1751312545803,0.008,107530.0,107520.0,2.10906604]
[1751312546003,0.24594751,107530.0,107520.0,2.10906604]
[1751312547511,0.008,107530.0,107520.0,2.10906604]
[1751312547708,0.24594751,107530.0,107520.0,2.10906604]
[1751312548511,0.008,107530.0,107520.0,2.10906604]
[1751312556120,0.008,107530.0,107520.0,2.07199322]
[1751312562328,0.008,107530.0,107520.0,1.5960982]
[1751312562521,0.008,107530.0,107520.0,2.07199322]
[1751312564625,1.508,107530.0,107520.0,2.07199322]
[1751312566128,1.508,107530.0,107520.0,2.1090381]
[1751312568234,1.508,107530.0,107520.0,2.07199322]
[1751312573933,1.508,107530.0,107520.0,2.43279322]
[1751312575034,0.008,107530.0,107520.0,2.43279322]
[1751312575440,1.508,107530.0,107520.0,2.43279322]
[1751312576135,1.508,107530.0,107520.0,2.45129527]
[1751312578736,1.508,107530.0,107520.0,2.37741723]
[1751312578939,1.508,107530.0,107520.0,2.45129527]
[1751312580542,0.008,107530.0,107520.0,2.68924278]
[1751312580836,0.01547028,107540.0,107530.0,0.1859668]
[1751312581038,0.01547028,107540.0,107530.0,1.48122935]
[1751312581233,0.01547028,107540.0,107530.0,1.48122927]
[1751312581640,0.01547028,107540.0,107530.0,1.42566182]
[1751312582244,0.01547028,107540.0,107530.0,1.4811958]
[1751312582944,8e-08,107540.0,107530.0,2.14744606]
[1751312583245,8e-08,107540.0,107530.0,1.91049855]
[1751312583541,8e-08,107540.0,107530.0,1.45294883]
[1751312585542,8e-08,107540.0,107530.0,1.46384841]
[1751312586843,8e-08,107540.0,107530.0,1.45294883]
[1751312596448,8e-08,107540.0,107530.0,1.46384813]
[1751312597747,8e-08,107540.0,107530.0,1.27786414]
[1751312603147,8e-08,107540.0,107530.0,1.2039861]
[1751312605651,8e-08,107540.0,107530.0,1.296369]
[1751312609656,8e-08,107540.0,107530.0,1.657169]
[1751312610055,8e-08,107540.0,107530.0,1.953769]
[1751312610257,8e-08,107540.0,107530.0,1.711449]
[1751312610456,8e-08,107540.0,107530.0,2.531529]
[1751312610853,8e-08,107540.0,107530.0,1.414849]
[1751312611055,8e-08,107540.0,107530.0,1.992969]
[1751312611256,0.03280008,107540.0,107530.0,1.992969]
[1751312612352,0.03280008,107540.0,107530.0,2.37648112]
[1751312613356,0.03280008,107540.0,107530.0,2.50581718]
[1751312616056,0.03280008,107540.0,107530.0,2.49491788]
[1751312616260,0.03280008,107540.0,107530.0,2.45811094]
[1751312617457,0.03280008,107540.0,107530.0,1.87999094]
[1751312617659,0.03280008,107540.0,107530.0,2.36499094]
[1751312617958,0.09490008,107540.0,107530.0,2.34651195]
[1751312622164,0.09490008,107540.0,107530.0,2.37931195]
[1751312622667,0.09490008,107540.0,107530.0,2.67591195]
[1751312623464,0.09490008,107540.0,107530.0,2.70791195]
[1751312626163,0.09490008,107540.0,107530.0,2.63386182]
[1751312626464,0.09490008,107540.0,107530.0,2.64476106]
[1751312627372,0.03280008,107540.0,107530.0,2.64476106]
[1751312627560,0.03280008,107540.0,107530.0,2.67626106]
[1751312627864,0.03280008,107540.0,107530.0,2.76879018]
[1751312628870,0.03280008,107540.0,107530.0,2.67626106]
[1751312630869,0.03280008,107540.0,107530.0,2.76883065]
[1751312631063,0.03280008,107540.0,107530.0,2.67626106]
[1751312631368,0.03280008,107540.0,107530.0,2.76883065]
[1751312631566,0.03280008,107540.0,107530.0,2.76883271]
[1751312638978,8e-08,107540.0,107530.0,2.76883271]
[1751312642679,8e-08,107540.0,107530.0,2.67626106]
[1751312642879,8e-08,107540.0,107530.0,2.80559712]
[1751312645182,8e-08,107540.0,107530.0,2.08399712]
[1751312645382,8e-08,107540.0,107530.0,2.80559712]
[1751312646490,8e-08,107540.0,107530.0,2.3297021]
[1751312646690,8e-08,107540.0,107530.0,2.80559712]
[1751312651297,8e-08,107540.0,107530.0,2.76884883]
[1751312653997,8e-08,107540.0,107530.0,2.19084883]
[1751312654200,0.27054759,107540.0,107530.0,1.69272507]
[1751312654501,0.33124759,107540.0,107530.0,2.41545692]
[1751312654998,0.09330008,107540.0,107530.0,1.83809692]
[1751312655204,0.09330008,107540.0,107530.0,2.41545692]
[1751312657804,0.51719709,107540.0,107530.0,1.60014941]
[1751312658101,0.51719709,107540.0,107530.0,2.41541692]
[1751312658406,0.51719709,107540.0,107530.0,2.11881692]
[1751312659202,0.51719709,107540.0,107530.0,1.54149692]
[1751312659402,0.33124759,107540.0,107530.0,2.11881692]
[1751312660104,0.51719709,107540.0,107530.0,1.29265017]
[1751312660403,0.51719709,107540.0,107530.0,1.09571431]
[1751312660902,0.51719709,107540.0,107530.0,1.15125256]
[1751312661101,0.51719709,107540.0,107530.0,1.18826433]
[1751312662104,0.51719709,107540.0,107530.0,0.95031682]
[1751312662304,0.51719709,107540.0,107530.0,1.18826433]
[1751312665006,0.51719709,107540.0,107530.0,1.13272608]
[1751312665507,0.52656432,107540.0,107530.0,1.13272608]
[1751312666208,0.52656432,107540.0,107530.0,1.18826433]
[1751312667709,0.51719709,107540.0,107530.0,1.18826433]
[1751312674013,0.51719709,107540.0,107530.0,0.95031682]
[1751312674311,0.51719709,107540.0,107530.0,1.18826433]
[1751312675614,0.51719709,107540.0,107530.0,0.95031682]
[1751312675911,0.51719709,107540.0,107530.0,1.18826433]
[1751312676710,0.53229862,107540.0,107530.0,1.18826433]
[1751312678515,0.53229862,107540.0,107530.0,0.95031682]
[1751312678713,0.70954613,107540.0,107530.0,0.95031682]
[1751312678914,0.87424613,107540.0,107530.0,0.95031682]
[1751312679914,1.21337862,107540.0,107530.0,0.95031682]
[1751312680309,1.11337862,107540.0,107530.0,0.95031682]
[1751312680503,1.11337862,107540.0,107530.0,1.18826433]
[1751312681717,0.87543111,107540.0,107530.0,1.18826433]
[1751312682017,1.11337862,107540.0,107530.0,1.18826433]
[1751312682216,1.11337862,107540.0,107530.0,1.21836433]
[1751312682516,1.35132613,107540.0,107530.0,0.98041682]
[1751312682817,1.45132613,107540.0,107530.0,0.98041682]
[1751312683812,1.45132613,107540.0,107530.0,0.95031682]
[1751312684019,1.45132613,107540.0,107530.0,0.64031682]
[1751312685320,1.45132613,107540.0,107530.0,0.58477857]
[1751312685520,1.45132613,107540.0,107530.0,0.6125373]
[1751312688019,1.45132613,107540.0,107530.0,0.57552553]
[1751312688220,1.45132613,107540.0,107530.0,0.6125373]
[1751312688420,1.45132613,107540.0,107530.0,0.6426373]
[1751312690021,1.35132613,107540.0,107530.0,0.6426373]
[1751312692724,1.45132613,107540.0,107530.0,0.6426373]
[1751312694121,1.87525764,107540.0,107530.0,0.02875873]
[1751312694326,1.99811013,107540.0,107530.0,0.21472553]
[1751312694528,1.53731013,107540.0,107530.0,0.21472553]
[1751312694726,1.81212613,107540.0,107530.0,0.21472553]
[1751312695931,1.45132613,107540.0,107530.0,0.21472553]
[1751312700030,1.81212613,107540.0,107530.0,0.21472553]
[1751312700227,1.45132613,107540.0,107530.0,0.21472553]
[1751312700427,1.81212613,107540.0,107530.0,0.21472553]
[1751312701418,1.45132613,107540.0,107530.0,0.21472553]
[1751312701623,1.81212613,107540.0,107530.0,0.2517373]
[1751312701823,1.81212613,107540.0,107530.0,0.21472553]
[1751312703934,2.23605764,107540.0,107530.0,0.02875873]
[1751312704233,0.1859668,107530.0,107520.0,0.21373652]
[1751312704433,0.85676182,107530.0,107520.0,0.22810429]
[1751312704734,0.51881431,107530.0,107520.0,0.22810429]
[1751312705033,0.48731431,107530.0,107520.0,0.29060429]
[1751312705232,0.48731431,107530.0,107520.0,0.32761606]
[1751312705927,0.48731431,107530.0,107520.0,0.29060429]